[Event "*** Titled Tuesday Blitz"]
[Site "Chess.com"]
[Date "2020.02.04"]
[Round "3"]
[White "Valk4"]
[Black "vanyakuba"]
[Result "1/2-1/2"]
[WhiteElo "2270"]
[BlackElo "2408"]
[TimeControl "180+2"]
[EndTime "13:40:17 PST"]
[Termination "Game drawn by repetition"]

1. e4 {[%clk 0:03:01.9]} 1... d5 {[%clk 0:02:56.7]} 2. exd5 {[%clk 0:03:02.5]}
2... Qxd5 {[%clk 0:02:57.7]} 3. Nc3 {[%clk 0:03:03.3]} 3... Qa5 {[%clk
0:02:57.9]} 4. d4 {[%clk 0:03:03.3]} 4... Nf6 {[%clk 0:02:59.1]} 5. Bc4 {[%clk
0:03:03.8]} 5... Nc6 {[%clk 0:02:59.2]} 6. d5 {[%clk 0:03:01.1]} 6... Ne5 {[%clk
0:03:00]} 7. Bb3 {[%clk 0:03:01.5]} 7... Bf5 {[%clk 0:02:46.1]} 8. Bf4 {[%clk
0:03:00.9]} 8... Ng6 {[%clk 0:02:41.9]} 9. Bd2 {[%clk 0:02:36.5]} 9... O-O-O
{[%clk 0:02:42]} 10. Nf3 {[%clk 0:02:35.9]} 10... Qa6 {[%clk 0:02:29.2]} 11. Qe2
{[%clk 0:02:27]} 11... Qxe2+ {[%clk 0:02:25.3]} 12. Kxe2 {[%clk 0:02:28.9]}
12... Bg4 {[%clk 0:02:14.7]} 13. h3 {[%clk 0:02:29]} 13... Bxf3+ {[%clk
0:02:14.2]} 14. Kxf3 {[%clk 0:02:30.9]} 14... e6 {[%clk 0:02:05.5]} 15. Bg5
{[%clk 0:02:27.8]} 15... Ne5+ {[%clk 0:01:41]} 16. Ke2 {[%clk 0:02:20.8]} 16...
exd5 {[%clk 0:01:28.1]} 17. Bxf6 {[%clk 0:02:12.6]} 17... gxf6 {[%clk 0:01:30]}
18. Nxd5 {[%clk 0:02:11.5]} 18... c6 {[%clk 0:01:31]} 19. Nxf6 {[%clk
0:02:07.3]} 19... Be7 {[%clk 0:01:02.7]} 20. Ng4 {[%clk 0:02:07.4]} 20... Ng6
{[%clk 0:00:47.7]} 21. Rad1 {[%clk 0:01:35.7]} 21... Kc7 {[%clk 0:00:48.2]} 22.
Rxd8 {[%clk 0:01:20.4]} 22... Rxd8 {[%clk 0:00:50.1]} 23. g3 {[%clk 0:00:59.7]}
23... f5 {[%clk 0:00:47]} 24. Ne3 {[%clk 0:00:54.5]} 24... f4 {[%clk 0:00:46.2]}
25. Nf5 {[%clk 0:00:54.3]} 25... Bf6 {[%clk 0:00:38.9]} 26. c3 {[%clk
0:00:49.1]} 26... Re8+ {[%clk 0:00:36.1]} 27. Kd2 {[%clk 0:00:42.9]} 27... fxg3
{[%clk 0:00:34.5]} 28. fxg3 {[%clk 0:00:44.8]} 28... Bg5+ {[%clk 0:00:35.1]} 29.
Kd1 {[%clk 0:00:41.2]} 29... Rd8+ {[%clk 0:00:28.3]} 30. Kc2 {[%clk 0:00:42]}
30... Rd2+ {[%clk 0:00:29.2]} 31. Kb1 {[%clk 0:00:42.9]} 31... Ne5 {[%clk
0:00:22.8]} 32. h4 {[%clk 0:00:36.9]} 32... Bf6 {[%clk 0:00:21.4]} 33. Nd4
{[%clk 0:00:29.4]} 33... Nd3 {[%clk 0:00:19.4]} 34. Ne6+ {[%clk 0:00:26.2]}
34... Kb6 {[%clk 0:00:19.8]} 35. Bc2 {[%clk 0:00:24.5]} 35... Nf2 {[%clk
0:00:09.1]} 36. Rf1 {[%clk 0:00:22.7]} 36... Be5 {[%clk 0:00:07.1]} 37. Bxh7
{[%clk 0:00:10]} 37... Bxg3 {[%clk 0:00:06]} 38. h5 {[%clk 0:00:11.1]} 38... Re2
{[%clk 0:00:04.6]} 39. Nd4 {[%clk 0:00:11.1]} 39... Re5 {[%clk 0:00:03.6]} 40.
Bg6 {[%clk 0:00:11]} 40... Nh3 {[%clk 0:00:03.1]} 41. Rf3 {[%clk 0:00:10.1]}
41... Rg5 {[%clk 0:00:03.7]} 42. Kc2 {[%clk 0:00:10.3]} 42... Be5 {[%clk
0:00:04.3]} 43. Ne6 {[%clk 0:00:09.8]} 43... Rg2+ {[%clk 0:00:05.2]} 44. Kb3
{[%clk 0:00:11.1]} 44... Ng5 {[%clk 0:00:05]} 45. Rf5 {[%clk 0:00:12.2]} 45...
Nxe6 {[%clk 0:00:05.5]} 46. Rxe5 {[%clk 0:00:11.7]} 46... Nf4 {[%clk 0:00:06.8]}
47. Re4 {[%clk 0:00:09.5]} 47... Nxg6 {[%clk 0:00:07.5]} 48. hxg6 {[%clk
0:00:10.4]} 48... Rxg6 {[%clk 0:00:09.4]} 49. Rb4+ {[%clk 0:00:11.7]} 49... Kc7
{[%clk 0:00:10.4]} 50. Rc4 {[%clk 0:00:13.2]} 50... Rg2 {[%clk 0:00:10.9]} 51.
Rf4 {[%clk 0:00:14.3]} 51... Rh2 {[%clk 0:00:11.1]} 52. Rf7+ {[%clk 0:00:15.6]}
52... Kb6 {[%clk 0:00:12.3]} 53. Rg7 {[%clk 0:00:17.5]} 53... a5 {[%clk
0:00:13.4]} 54. Rf7 {[%clk 0:00:18.9]} 54... Rg2 {[%clk 0:00:14]} 55. a3 {[%clk
0:00:19.6]} 55... Rh2 {[%clk 0:00:14.7]} 56. a4 {[%clk 0:00:20.9]} 56... Rg2
{[%clk 0:00:15.6]} 57. Rf6 {[%clk 0:00:22.1]} 57... Rh2 {[%clk 0:00:16.6]} 58.
Rf7 {[%clk 0:00:23.7]} 58... Rg2 {[%clk 0:00:17.7]} 59. Rf6 {[%clk 0:00:25.2]}
59... Rh2 {[%clk 0:00:18.9]} 60. Rf7 {[%clk 0:00:26.8]} 1/2-1/2

[Event "*** Titled Tuesday Blitz"]
[Site "Chess.com"]
[Date "2020.02.04"]
[Round "3"]
[White "mbojan"]
[Black "riconaipe"]
[Result "1/2-1/2"]
[WhiteElo "2757"]
[BlackElo "2541"]
[TimeControl "180+2"]
[EndTime "13:40:20 PST"]
[Termination "Game drawn by stalemate"]

1. e4 {[%clk 0:03:01.4]} 1... g6 {[%clk 0:02:56.1]} 2. d4 {[%clk 0:03:02.2]}
2... Bg7 {[%clk 0:02:57]} 3. Nc3 {[%clk 0:03:03.6]} 3... c6 {[%clk 0:02:58.3]}
4. Nf3 {[%clk 0:03:04.1]} 4... d5 {[%clk 0:02:58.9]} 5. Be3 {[%clk 0:03:04.9]}
5... Bg4 {[%clk 0:02:55.5]} 6. h3 {[%clk 0:03:03.4]} 6... Bxf3 {[%clk
0:02:55.4]} 7. Qxf3 {[%clk 0:03:05.3]} 7... e6 {[%clk 0:02:56.7]} 8. exd5 {[%clk
0:02:47.5]} 8... cxd5 {[%clk 0:02:53.4]} 9. Bb5+ {[%clk 0:02:42.2]} 9... Nc6
{[%clk 0:02:54.4]} 10. Rd1 {[%clk 0:02:41.3]} 10... Ne7 {[%clk 0:02:51.6]} 11.
O-O {[%clk 0:02:41.8]} 11... Nf5 {[%clk 0:02:50.9]} 12. Ne2 {[%clk 0:02:23.1]}
12... O-O {[%clk 0:02:50.3]} 13. c3 {[%clk 0:02:21.9]} 13... Rc8 {[%clk
0:02:47.4]} 14. Bf4 {[%clk 0:02:17.6]} 14... Na5 {[%clk 0:02:45.9]} 15. Bd3
{[%clk 0:02:17.9]} 15... Nc4 {[%clk 0:02:45.8]} 16. Bc1 {[%clk 0:02:17.2]} 16...
Ncd6 {[%clk 0:02:43]} 17. Ng3 {[%clk 0:02:12.9]} 17... Nxg3 {[%clk 0:02:42.1]}
18. Qxg3 {[%clk 0:02:14.1]} 18... b5 {[%clk 0:02:37.8]} 19. Bf4 {[%clk
0:02:04.5]} 19... Nc4 {[%clk 0:02:38.4]} 20. b3 {[%clk 0:02:01.7]} 20... Nb2
{[%clk 0:02:38.6]} 21. Rd2 {[%clk 0:01:38.4]} 21... Nxd3 {[%clk 0:02:38.7]} 22.
Rxd3 {[%clk 0:01:40.3]} 22... Rc6 {[%clk 0:02:26]} 23. Bd2 {[%clk 0:01:33.9]}
23... Qc7 {[%clk 0:02:24.4]} 24. Ra1 {[%clk 0:01:33.8]} 24... Qxg3 {[%clk
0:02:24.1]} 25. fxg3 {[%clk 0:01:34.9]} 25... Rb8 {[%clk 0:02:09.7]} 26. g4
{[%clk 0:01:31.3]} 26... Bf8 {[%clk 0:02:08.5]} 27. a3 {[%clk 0:01:21.3]} 27...
a5 {[%clk 0:02:08.6]} 28. b4 {[%clk 0:00:56.7]} 28... Ra8 {[%clk 0:02:00.2]} 29.
Rb1 {[%clk 0:00:53.3]} 29... axb4 {[%clk 0:02:00.8]} 30. axb4 {[%clk 0:00:54.1]}
30... Ra2 {[%clk 0:02:00.8]} 31. Kf2 {[%clk 0:00:52.5]} 31... Bh6 {[%clk
0:01:58.2]} 32. Ke1 {[%clk 0:00:45.3]} 32... Bxd2+ {[%clk 0:01:58.1]} 33. Rxd2
{[%clk 0:00:47.2]} 33... Ra3 {[%clk 0:01:59.2]} 34. Rd3 {[%clk 0:00:29.7]} 34...
Raxc3 {[%clk 0:01:59.9]} 35. Rxc3 {[%clk 0:00:31]} 35... Rxc3 {[%clk 0:02:00.6]}
36. Kd2 {[%clk 0:00:32.1]} 36... Rg3 {[%clk 0:02:00.5]} 37. Rc1 {[%clk
0:00:31.3]} 37... Rxg2+ {[%clk 0:02:01.1]} 38. Ke3 {[%clk 0:00:32.7]} 38... Rg3+
{[%clk 0:02:02.1]} 39. Kf4 {[%clk 0:00:33.8]} 39... Rxh3 {[%clk 0:02:02.3]} 40.
Rc5 {[%clk 0:00:34.7]} 40... Rd3 {[%clk 0:01:58.5]} 41. Ke5 {[%clk 0:00:30.8]}
41... Kg7 {[%clk 0:01:58.9]} 42. Rxb5 {[%clk 0:00:32.1]} 42... Re3+ {[%clk
0:02:00.1]} 43. Kd6 {[%clk 0:00:32.6]} 43... Re4 {[%clk 0:01:54.1]} 44. Kc5
{[%clk 0:00:28.5]} 44... Rxg4 {[%clk 0:01:54.7]} 45. Ra5 {[%clk 0:00:29.1]}
45... Rg1 {[%clk 0:01:52.5]} 46. b5 {[%clk 0:00:30.7]} 46... Rc1+ {[%clk
0:01:53.9]} 47. Kd6 {[%clk 0:00:31.9]} 47... h5 {[%clk 0:01:48.6]} 48. b6 {[%clk
0:00:32.9]} 48... Rb1 {[%clk 0:01:45]} 49. Kc6 {[%clk 0:00:34.1]} 49... Rc1+
{[%clk 0:01:45.6]} 50. Kd6 {[%clk 0:00:34.9]} 50... Rb1 {[%clk 0:01:43.3]} 51.
Kc6 {[%clk 0:00:36.2]} 51... h4 {[%clk 0:01:39]} 52. Rb5 {[%clk 0:00:14]} 52...
Rxb5 {[%clk 0:01:39.2]} 53. Kxb5 {[%clk 0:00:15.9]} 53... h3 {[%clk 0:01:40.6]}
54. b7 {[%clk 0:00:17.4]} 54... h2 {[%clk 0:01:42.2]} 55. b8=Q {[%clk
0:00:17.9]} 55... h1=Q {[%clk 0:01:43.4]} 56. Qe5+ {[%clk 0:00:19.6]} 56... Kh7
{[%clk 0:01:43.1]} 57. Qf6 {[%clk 0:00:20.8]} 57... Qb1+ {[%clk 0:01:38.2]} 58.
Kc6 {[%clk 0:00:21.4]} 58... Qf5 {[%clk 0:01:39.5]} 59. Qe7 {[%clk 0:00:22.2]}
59... Kg7 {[%clk 0:01:39]} 60. Kd7 {[%clk 0:00:22.8]} 60... e5+ {[%clk
0:01:32.1]} 61. Kc7 {[%clk 0:00:24]} 61... exd4 {[%clk 0:01:30.7]} 62. Qc5
{[%clk 0:00:24.2]} 62... d3 {[%clk 0:01:30]} 63. Qd4+ {[%clk 0:00:25.2]} 63...
f6 {[%clk 0:01:30.8]} 64. Kd8 {[%clk 0:00:24.9]} 64... g5 {[%clk 0:01:29.9]} 65.
Qa7+ {[%clk 0:00:24.3]} 65... Kg6 {[%clk 0:01:29.4]} 66. Ke8 {[%clk 0:00:24.7]}
66... Qe6+ {[%clk 0:01:17.4]} 67. Kf8 {[%clk 0:00:26]} 67... Qd6+ {[%clk
0:01:18.3]} 68. Ke8 {[%clk 0:00:27.4]} 68... d2 {[%clk 0:01:02.7]} 69. Qf7+
{[%clk 0:00:11.1]} 69... Kh6 {[%clk 0:01:01.7]} 70. Qg6+ {[%clk 0:00:12.4]}
70... Kxg6 {[%clk 0:01:01.5]} 1/2-1/2

[Event "*** Titled Tuesday Blitz"]
[Site "Chess.com"]
[Date "2020.02.04"]
[Round "3"]
[White "gena217"]
[Black "Sutormin_DA"]
[Result "1-0"]
[WhiteElo "2988"]
[BlackElo "2605"]
[TimeControl "180+2"]
[EndTime "13:40:27 PST"]
[Termination "gena217 won by resignation"]

1. e4 {[%clk 0:03:01.9]} 1... e5 {[%clk 0:02:59.6]} 2. Nf3 {[%clk 0:03:02.5]}
2... Nc6 {[%clk 0:03:00.6]} 3. Bb5 {[%clk 0:03:04.1]} 3... Nf6 {[%clk
0:03:01.2]} 4. d3 {[%clk 0:03:01.1]} 4... Bc5 {[%clk 0:03:01.5]} 5. Bxc6 {[%clk
0:02:59.4]} 5... dxc6 {[%clk 0:03:03.4]} 6. Nbd2 {[%clk 0:02:59.9]} 6... O-O
{[%clk 0:02:57.9]} 7. O-O {[%clk 0:02:58.8]} 7... Bg4 {[%clk 0:02:55.8]} 8. h3
{[%clk 0:02:50.7]} 8... Bh5 {[%clk 0:02:55.6]} 9. Nc4 {[%clk 0:02:40.1]} 9...
Bxf3 {[%clk 0:02:40]} 10. Qxf3 {[%clk 0:02:39.3]} 10... Re8 {[%clk 0:02:41.5]}
11. Bg5 {[%clk 0:02:39.4]} 11... Re6 {[%clk 0:02:41.7]} 12. a4 {[%clk
0:02:29.2]} 12... a5 {[%clk 0:02:36.6]} 13. Qg3 {[%clk 0:02:19.3]} 13... h6
{[%clk 0:02:29.3]} 14. Bd2 {[%clk 0:02:12.7]} 14... Nh5 {[%clk 0:02:23.4]} 15.
Qf3 {[%clk 0:02:11.6]} 15... Qh4 {[%clk 0:02:16.1]} 16. Qg4 {[%clk 0:01:57.6]}
16... Qxg4 {[%clk 0:02:00.3]} 17. hxg4 {[%clk 0:01:59.5]} 17... Nf6 {[%clk
0:01:54.6]} 18. Nxa5 {[%clk 0:01:59.1]} 18... Bd4 {[%clk 0:01:42.2]} 19. Nxb7
{[%clk 0:01:43.2]} 19... Bxb2 {[%clk 0:01:19.8]} 20. Ra2 {[%clk 0:01:33.7]}
20... Bd4 {[%clk 0:01:21.1]} 21. Na5 {[%clk 0:01:32.7]} 21... Nxg4 {[%clk
0:01:19.3]} 22. Nc4 {[%clk 0:01:33.2]} 22... h5 {[%clk 0:01:13.2]} 23. Be3
{[%clk 0:01:32.6]} 23... Bxe3 {[%clk 0:00:41.2]} 24. fxe3 {[%clk 0:01:31.9]}
24... g6 {[%clk 0:00:39.7]} 25. a5 {[%clk 0:01:32.1]} 25... c5 {[%clk
0:00:36.9]} 26. Rb1 {[%clk 0:01:32.4]} 26... Kf8 {[%clk 0:00:35.7]} 27. Rb5
{[%clk 0:01:28.7]} 27... Rc6 {[%clk 0:00:36.3]} 28. Rab2 {[%clk 0:01:20.8]}
28... Ke7 {[%clk 0:00:35.7]} 29. Rb8 {[%clk 0:01:20.1]} 29... Rxb8 {[%clk
0:00:32.9]} 30. Rxb8 {[%clk 0:01:22]} 30... Ra6 {[%clk 0:00:30]} 31. Kf1 {[%clk
0:01:15.8]} 31... Kd7 {[%clk 0:00:31.1]} 32. Ke2 {[%clk 0:01:16.6]} 32... Ke7
{[%clk 0:00:27.2]} 33. Kd2 {[%clk 0:01:10.2]} 33... Kd7 {[%clk 0:00:27.4]} 34.
Rb5 {[%clk 0:01:09.7]} 34... Kc6 {[%clk 0:00:28.1]} 35. Rb1 {[%clk 0:01:11.2]}
35... Kd7 {[%clk 0:00:28.7]} 36. Rf1 {[%clk 0:01:12.3]} 36... Ke7 {[%clk
0:00:29.8]} 37. Kc3 {[%clk 0:01:10.8]} 37... f6 {[%clk 0:00:27.4]} 38. Kb3
{[%clk 0:01:11.8]} 38... Kd7 {[%clk 0:00:28]} 39. Ka4 {[%clk 0:01:13]} 39... Kc6
{[%clk 0:00:29.1]} 40. Rb1 {[%clk 0:01:14.5]} 40... g5 {[%clk 0:00:26.2]} 41.
Rb8 {[%clk 0:01:13]} 41... h4 {[%clk 0:00:27.5]} 42. Re8 {[%clk 0:01:11.7]}
42... Kd7 {[%clk 0:00:27.7]} 43. Rf8 {[%clk 0:01:09.2]} 43... Kc6 {[%clk
0:00:28.5]} 44. c3 {[%clk 0:01:07]} 44... Ra7 {[%clk 0:00:27.6]} 45. d4 {[%clk
0:01:05.9]} 45... cxd4 {[%clk 0:00:28.9]} 46. exd4 {[%clk 0:01:07.8]} 46... exd4
{[%clk 0:00:28]} 47. cxd4 {[%clk 0:01:09.4]} 47... Rb7 {[%clk 0:00:24.2]} 48. a6
{[%clk 0:00:59.8]} 48... Ra7 {[%clk 0:00:19.4]} 49. Ka5 {[%clk 0:00:59.2]} 49...
Kd7 {[%clk 0:00:17.9]} 50. Kb5 {[%clk 0:00:54.4]} 50... Ke7 {[%clk 0:00:09.5]}
51. Rc8 {[%clk 0:00:49.8]} 51... Kd7 {[%clk 0:00:10.5]} 52. Rh8 {[%clk 0:00:51]}
52... Nf2 {[%clk 0:00:10.5]} 53. Rh7+ {[%clk 0:00:46.6]} 53... Kd8 {[%clk
0:00:09.9]} 54. Na5 {[%clk 0:00:41.5]} 54... Kc8 {[%clk 0:00:07.1]} 55. Nc6
{[%clk 0:00:40.3]} 55... Rxa6 {[%clk 0:00:04.1]} 56. Kxa6 {[%clk 0:00:42.2]}
56... Nxe4 {[%clk 0:00:05.8]} 57. Kb5 {[%clk 0:00:37.1]} 57... Nd6+ {[%clk
0:00:03.5]} 58. Kc5 {[%clk 0:00:35.7]} 58... Ne4+ {[%clk 0:00:04.8]} 59. Kd5
{[%clk 0:00:36.3]} 59... Nd6 {[%clk 0:00:05.2]} 60. Ke6 {[%clk 0:00:36.9]} 60...
f5 {[%clk 0:00:06.5]} 61. Ne7+ {[%clk 0:00:34]} 61... Kb7 {[%clk 0:00:07.3]} 62.
Nxf5 {[%clk 0:00:35.5]} 1-0

[Event "*** Titled Tuesday Blitz"]
[Site "Chess.com"]
[Date "2020.02.04"]
[Round "3"]
[White "Tayson_7"]
[Black "SantoBlue"]
[Result "1-0"]
[WhiteElo "2672"]
[BlackElo "2818"]
[TimeControl "180+2"]
[EndTime "13:40:32 PST"]
[Termination "Tayson_7 won by resignation"]

1. e4 {[%clk 0:03:01.9]} 1... e5 {[%clk 0:02:58.8]} 2. Nf3 {[%clk 0:03:03]} 2...
Nc6 {[%clk 0:02:57.9]} 3. Bb5 {[%clk 0:03:04.4]} 3... a6 {[%clk 0:02:57.6]} 4.
Ba4 {[%clk 0:03:05.1]} 4... Nf6 {[%clk 0:02:58.4]} 5. O-O {[%clk 0:03:06.5]}
5... Be7 {[%clk 0:02:59.1]} 6. Re1 {[%clk 0:03:07.4]} 6... b5 {[%clk 0:02:59.3]}
7. Bb3 {[%clk 0:03:08.7]} 7... O-O {[%clk 0:03:00.6]} 8. c3 {[%clk 0:03:09.4]}
8... d6 {[%clk 0:02:58.1]} 9. h3 {[%clk 0:03:09.8]} 9... Nb8 {[%clk 0:02:53.9]}
10. d4 {[%clk 0:03:10.5]} 10... Nbd7 {[%clk 0:02:55]} 11. c4 {[%clk 0:03:11.9]}
11... b4 {[%clk 0:02:53.9]} 12. a3 {[%clk 0:03:01.6]} 12... bxa3 {[%clk
0:02:49.9]} 13. Nxa3 {[%clk 0:02:55.2]} 13... Rb8 {[%clk 0:02:47.9]} 14. Bc2
{[%clk 0:02:51.6]} 14... Re8 {[%clk 0:02:43.2]} 15. Rb1 {[%clk 0:02:43.5]} 15...
Bf8 {[%clk 0:02:41.4]} 16. d5 {[%clk 0:02:43.3]} 16... a5 {[%clk 0:02:34]} 17.
Bd2 {[%clk 0:02:43.6]} 17... Ra8 {[%clk 0:02:33.2]} 18. Ra1 {[%clk 0:02:42.1]}
18... Nc5 {[%clk 0:02:32.3]} 19. Nb5 {[%clk 0:02:38.6]} 19... a4 {[%clk
0:02:27]} 20. b4 {[%clk 0:02:36.3]} 20... axb3 {[%clk 0:02:24.9]} 21. Rxa8
{[%clk 0:02:36.8]} 21... bxc2 {[%clk 0:02:26.2]} 22. Qxc2 {[%clk 0:02:38.7]}
22... Qd7 {[%clk 0:02:18.1]} 23. Bb4 {[%clk 0:02:39.1]} 23... Na6 {[%clk
0:02:13.2]} 24. Ba5 {[%clk 0:02:35.2]} 24... Bb7 {[%clk 0:02:06.6]} 25. Ra7
{[%clk 0:02:30.5]} 25... Rb8 {[%clk 0:01:53.3]} 26. Rb1 {[%clk 0:02:30.9]} 26...
Qc8 {[%clk 0:01:41.1]} 27. c5 {[%clk 0:02:31.1]} 27... Nxc5 {[%clk 0:01:39.5]}
28. Nd2 {[%clk 0:02:10.7]} 28... c6 {[%clk 0:01:34.2]} 29. Bc7 {[%clk
0:01:33.2]} 29... cxb5 {[%clk 0:01:21.5]} 30. Bxb8 {[%clk 0:01:34]} 30... Qxb8
{[%clk 0:01:22.9]} 31. Ra5 {[%clk 0:01:35.3]} 31... Ba6 {[%clk 0:01:19.3]} 32.
Qa2 {[%clk 0:01:33]} 32... Qb6 {[%clk 0:01:10]} 33. Nc4 {[%clk 0:01:32.4]} 33...
Qc7 {[%clk 0:01:11.2]} 34. Nd2 {[%clk 0:01:26.4]} 34... Qc8 {[%clk 0:01:11.5]}
35. Ra1 {[%clk 0:01:24.6]} 35... Bb7 {[%clk 0:01:11.1]} 36. Rxb5 {[%clk
0:01:24]} 36... Nfxe4 {[%clk 0:01:09.5]} 37. Nxe4 {[%clk 0:01:24.6]} 37... Nxe4
{[%clk 0:01:11.4]} 38. Qa7 {[%clk 0:01:25.1]} 38... Nc5 {[%clk 0:01:12.5]} 39.
Rab1 {[%clk 0:01:21.2]} 39... h5 {[%clk 0:00:59.8]} 40. Rxc5 {[%clk 0:01:19.3]}
40... dxc5 {[%clk 0:01:00.8]} 41. Rxb7 {[%clk 0:01:17.4]} 41... Qf5 {[%clk
0:01:02.7]} 42. Rb8 {[%clk 0:01:14.7]} 42... Qc2 {[%clk 0:00:57.2]} 43. Qa1
{[%clk 0:00:51.1]} 43... f6 {[%clk 0:00:48.8]} 44. d6 {[%clk 0:00:50.2]} 44...
Qd2 {[%clk 0:00:50.2]} 45. Rd8 {[%clk 0:00:44.4]} 45... Kf7 {[%clk 0:00:48.1]}
46. Qa6 {[%clk 0:00:32]} 46... Qd1+ {[%clk 0:00:23.7]} 47. Qf1 {[%clk
0:00:31.9]} 47... Qd4 {[%clk 0:00:21.9]} 48. Qb5 {[%clk 0:00:31.7]} 48... Qd1+
{[%clk 0:00:09.9]} 49. Kh2 {[%clk 0:00:32.1]} 49... Qd2 {[%clk 0:00:02.6]} 50.
Qe8+ {[%clk 0:00:26.6]} 50... Kg8 {[%clk 0:00:04]} 51. Qxf8+ {[%clk 0:00:26.2]}
51... Kh7 {[%clk 0:00:05.5]} 52. Qg8+ {[%clk 0:00:27.5]} 52... Kg6 {[%clk
0:00:05.8]} 53. Qc4 {[%clk 0:00:28.7]} 53... Qxf2 {[%clk 0:00:06.4]} 54. Rh8
{[%clk 0:00:29.1]} 54... f5 {[%clk 0:00:03.5]} 55. d7 {[%clk 0:00:29]} 55... e4
{[%clk 0:00:03.2]} 56. Qe6+ {[%clk 0:00:28.2]} 56... Kg5 {[%clk 0:00:04.3]} 57.
d8=Q+ {[%clk 0:00:29.6]} 57... Kf4 {[%clk 0:00:04.3]} 58. Qdd6+ {[%clk
0:00:30.7]} 58... Ke3 {[%clk 0:00:05.3]} 59. Qxc5+ {[%clk 0:00:31.7]} 1-0

[Event "*** Titled Tuesday Blitz"]
[Site "Chess.com"]
[Date "2020.02.04"]
[Round "3"]
[White "JonahWillow"]
[Black "dragos420"]
[Result "1-0"]
[WhiteElo "2742"]
[BlackElo "2482"]
[TimeControl "180+2"]
[EndTime "13:40:36 PST"]
[Termination "JonahWillow won by resignation"]

1. e4 {[%clk 0:03:01.9]} 1... e5 {[%clk 0:03:00]} 2. Nf3 {[%clk 0:03:03]} 2...
Nc6 {[%clk 0:03:01.5]} 3. Nc3 {[%clk 0:03:04.3]} 3... Nf6 {[%clk 0:03:02.5]} 4.
Bb5 {[%clk 0:03:05.8]} 4... Bb4 {[%clk 0:03:01.5]} 5. O-O {[%clk 0:03:06.6]}
5... O-O {[%clk 0:03:02.7]} 6. d3 {[%clk 0:03:07.7]} 6... Bxc3 {[%clk
0:03:04.3]} 7. bxc3 {[%clk 0:03:09.6]} 7... d6 {[%clk 0:03:06]} 8. Bg5 {[%clk
0:03:09.9]} 8... Qe7 {[%clk 0:03:06.7]} 9. Re1 {[%clk 0:03:09.8]} 9... Nd8
{[%clk 0:03:07.9]} 10. d4 {[%clk 0:03:03.7]} 10... Ne6 {[%clk 0:03:03.7]} 11.
Bc1 {[%clk 0:03:03.8]} 11... Nf4 {[%clk 0:02:59.5]} 12. Bxf4 {[%clk 0:02:58.4]}
12... exf4 {[%clk 0:02:59.5]} 13. Bd3 {[%clk 0:02:49.4]} 13... Bg4 {[%clk
0:02:36.5]} 14. h3 {[%clk 0:02:44.6]} 14... Bh5 {[%clk 0:02:37]} 15. Qd2 {[%clk
0:02:21.3]} 15... Bxf3 {[%clk 0:02:36.3]} 16. gxf3 {[%clk 0:02:23.2]} 16... Nh5
{[%clk 0:02:37.9]} 17. Kh2 {[%clk 0:02:24.5]} 17... g6 {[%clk 0:02:06.7]} 18.
Rab1 {[%clk 0:02:21.2]} 18... c6 {[%clk 0:02:03]} 19. e5 {[%clk 0:02:21.9]}
19... d5 {[%clk 0:02:01.7]} 20. Rg1 {[%clk 0:02:18.6]} 20... f6 {[%clk
0:01:54.3]} 21. Rbe1 {[%clk 0:02:15.4]} 21... Rae8 {[%clk 0:01:46.3]} 22. Rg4
{[%clk 0:02:08.9]} 22... Qf7 {[%clk 0:01:08.7]} 23. Reg1 {[%clk 0:01:39.3]}
23... Kh8 {[%clk 0:00:54.5]} 24. Rxg6 {[%clk 0:00:56.8]} 24... fxe5 {[%clk
0:00:49.3]} 25. dxe5 {[%clk 0:00:41.3]} 25... hxg6 {[%clk 0:00:47.5]} 26. Bxg6
{[%clk 0:00:43.2]} 26... Qc7 {[%clk 0:00:47.1]} 27. Bxh5 {[%clk 0:00:43.8]}
27... Rxe5 {[%clk 0:00:48.3]} 28. Bg6 {[%clk 0:00:31.2]} 28... Qe7 {[%clk
0:00:43]} 29. Qd3 {[%clk 0:00:25.3]} 29... Rg8 {[%clk 0:00:23.4]} 30. Rg4 {[%clk
0:00:25.3]} 30... Rg7 {[%clk 0:00:23]} 31. Qd4 {[%clk 0:00:23.9]} 31... Rg5
{[%clk 0:00:16.6]} 32. Bd3 {[%clk 0:00:13]} 32... Rxg4 {[%clk 0:00:15.6]} 33.
fxg4 {[%clk 0:00:14.4]} 33... Qh4 {[%clk 0:00:08.6]} 34. Qxf4 {[%clk 0:00:14.3]}
34... Qd8 {[%clk 0:00:06.8]} 35. Qh6+ {[%clk 0:00:14]} 35... Kg8 {[%clk
0:00:07.7]} 36. Qe6+ {[%clk 0:00:15.7]} 36... Kh8 {[%clk 0:00:09.2]} 37. Qe5
{[%clk 0:00:16.2]} 37... Qc7 {[%clk 0:00:09.7]} 38. Qxc7 {[%clk 0:00:17.8]}
38... Rxc7 {[%clk 0:00:11.6]} 39. f4 {[%clk 0:00:19.7]} 39... Kg7 {[%clk
0:00:13.5]} 40. f5 {[%clk 0:00:20.2]} 40... Re7 {[%clk 0:00:14.6]} 41. Kg3
{[%clk 0:00:21.4]} 41... Re3+ {[%clk 0:00:16]} 42. Kh4 {[%clk 0:00:17]} 42... c5
{[%clk 0:00:15.4]} 43. g5 {[%clk 0:00:18.2]} 43... c4 {[%clk 0:00:16.6]} 44. f6+
{[%clk 0:00:20.1]} 44... Kf7 {[%clk 0:00:18.1]} 45. Bf5 {[%clk 0:00:20.8]} 45...
Rxc3 {[%clk 0:00:18.2]} 46. Kg4 {[%clk 0:00:21.2]} 46... Re3 {[%clk 0:00:17.6]}
47. h4 {[%clk 0:00:22.2]} 47... d4 {[%clk 0:00:18.1]} 48. h5 {[%clk 0:00:22.2]}
48... d3 {[%clk 0:00:19.5]} 49. cxd3 {[%clk 0:00:24.1]} 49... cxd3 {[%clk
0:00:21.4]} 50. Bg6+ {[%clk 0:00:24.2]} 50... Kf8 {[%clk 0:00:22.1]} 51. h6
{[%clk 0:00:21.9]} 51... Re1 {[%clk 0:00:22.9]} 52. Bxd3 {[%clk 0:00:22.5]}
52... Rg1+ {[%clk 0:00:23.7]} 53. Kh5 {[%clk 0:00:22.5]} 53... Kf7 {[%clk
0:00:23.2]} 54. h7 {[%clk 0:00:22.8]} 54... Rh1+ {[%clk 0:00:24.1]} 55. Kg4
{[%clk 0:00:24.3]} 55... Rh2 {[%clk 0:00:16.8]} 56. Kf5 {[%clk 0:00:24.7]} 56...
Rh5 {[%clk 0:00:16.6]} 57. Bc4+ {[%clk 0:00:25.3]} 57... Kf8 {[%clk 0:00:18]}
58. Kg6 {[%clk 0:00:26.3]} 58... Rh1 {[%clk 0:00:19.5]} 59. Bg8 {[%clk
0:00:24.3]} 59... Rh2 {[%clk 0:00:19.4]} 60. Kf5 {[%clk 0:00:25.5]} 60... Rh5
{[%clk 0:00:20.3]} 61. Kg4 {[%clk 0:00:26.3]} 61... Rh1 {[%clk 0:00:18.6]} 62.
g6 {[%clk 0:00:27.7]} 62... Rg1+ {[%clk 0:00:19.9]} 63. Kf5 {[%clk 0:00:29.3]}
63... Rf1+ {[%clk 0:00:18.4]} 64. Ke5 {[%clk 0:00:30.4]} 64... Re1+ {[%clk
0:00:20]} 65. Kd4 {[%clk 0:00:31.8]} 65... Rd1+ {[%clk 0:00:19.3]} 66. Ke3
{[%clk 0:00:32.9]} 1-0